bitfinex-derivatives/quotes_SOLF0:USTF0_20250818
["timestamp","ask_amount","ask_price","bid_price","bid_amount"]
[1755487805536,4.2101028,183.69,183.57,2.89]
[1755487805737,2.89,183.67,183.57,2.89]
[1755487806438,8.3321,183.64,183.6,2.89]
[1755487807131,8.3321,183.64,183.61,2.89]
[1755487807336,5.4421,183.64,183.61,2.89]
[1755487808339,8.3321,183.64,183.61,2.89]
[1755487809131,8.3324,183.63,183.62,2.89]
[1755487809338,2.89,183.63,183.62,2.89]
[1755487809632,2.89,183.63,183.55,365.52]
[1755487809837,2.89,183.63,183.56,2.89]
[1755487810135,5.8338535,183.71,183.59,5.4436]
[1755487810336,2.89,183.64,183.6,2.89]
[1755487810837,5.4424,183.64,183.6,2.89]
[1755487811041,2.89,183.63,183.6,2.89]
[1755487811337,2.89,183.62,183.61,2.89]
[1755487811735,2.89,183.63,183.61,2.89]
[1755487811930,2.89,183.63,183.62,2.89]
[1755487813834,8.3324,183.63,183.62,2.89]
[1755487814035,2.89,183.63,183.62,2.89]
[1755487815030,2.89,183.68,183.62,2.89]
[1755487815641,8.3322,183.64,183.63,2.89]
[1755487815836,2.89,183.67,183.56,2.89]
[1755487816138,5.8338535,183.68,183.54,136.4]
[1755487816344,2.89,183.6,183.59,2.89]
[1755487816540,2.89,183.6,183.54,2.89]
[1755487816745,2.89,183.64,183.49,2.89]
[1755487817041,5.8338535,183.65,183.49,2.89]
[1755487817042,2.89,183.61,183.49,2.89]
[1755487817244,4.18995841,183.63,183.47,2.89]
[1755487817245,2.89,183.55,183.47,2.89]
[1755487817833,5.446,183.52,183.46,0.6358562]
[1755487818145,2.89,183.51,183.48,2.89]
[1755487818444,5.4461,183.51,183.47,2.89]
[1755487818645,8.3361,183.51,183.47,2.89]
[1755487818843,8.3356,183.53,183.48,2.89]
[1755487819039,2.89,183.52,183.48,2.89]
[1755487819543,2.89,183.56,183.48,2.89]
[1755487819844,2.89,183.56,183.53,2.89]
[1755487820044,2.89,183.61,183.53,2.89]
[1755487820238,2.89,183.59,183.53,2.89]
[1755487820435,2.89,183.57,183.51,2.89]
[1755487820638,2.89,183.55,183.51,2.89]
[1755487820845,2.89,183.55,183.46,6.4697097]
[1755487820846,5.4452,183.54,183.49,5.4463]
[1755487821146,2.89,183.53,183.5,2.89]
[1755487821354,2.89,183.53,183.52,2.89]
[1755487822446,3.09,183.52,183.46,0.6358562]
[1755487822747,3.09,183.51,183.47,8.4672]
[1755487822949,3.09,183.5,183.48,3.02]
[1755487823350,3.09,183.54,183.51,3.02]
[1755487823545,5.4448,183.55,183.51,3.02]
[1755487823737,3.09,183.53,183.51,3.02]
[1755487823940,3.09,183.53,183.47,3.02]
[1755487824252,3.09,183.54,183.47,3.02]
[1755487824544,3.09,183.59,183.47,3.02]
[1755487824746,8.5344,183.57,183.52,3.02]
[1755487825049,7.25938816,183.56,183.51,5.4458]
[1755487825348,4.16938816,183.55,183.51,5.4458]
[1755487825546,4.16938816,183.54,183.53,3.02]
[1755487825946,5.4446,183.56,183.53,3.02]
[1755487826146,7.26052391,183.55,183.53,3.02]
[1755487826350,4.17052391,183.54,183.5,3.02]
[1755487826543,3.09,183.52,183.47,3.02]
[1755487827250,3.09,183.52,183.49,5.4463]
[1755487827451,3.09,183.52,183.5,3.02]
[1755487827648,3.09,183.56,183.51,3.02]
[1755487827846,3.09,183.54,183.52,3.02]
[1755487828147,3.09,183.52,183.48,5.4468]
[1755487828450,3.09,183.53,183.49,3.02]
[1755487828642,3.09,183.51,183.5,3.02]
[1755487828842,3.09,183.57,183.47,8.4671]
[1755487829047,3.09,183.55,183.47,3.02]
[1755487829246,3.09,183.53,183.47,3.02]
[1755487829447,3.09,183.51,183.46,0.6358562]
[1755487829753,3.09,183.57,183.46,0.6358562]
[1755487829949,4.13073855,183.56,183.46,0.6358562]
[1755487830147,4.13073855,183.55,183.47,3.02]
[1755487830445,6.02465109,183.65,183.52,3.02]
[1755487830645,4.13222121,183.64,183.53,3.02]
[1755487830846,365.98,183.69,183.53,3.02]
[1755487830847,4.13222121,183.63,183.53,3.02]
[1755487831149,3.09,183.6,183.53,3.02]
[1755487831349,3.09,183.6,183.48,5.8338535]
[1755487831350,4.13222121,183.59,183.48,5.8338535]
[1755487831552,3.09,183.57,183.49,3.02]
[1755487831750,4.13249831,183.56,183.49,3.02]
[1755487831948,3.09,183.54,183.47,3.02]
[1755487832148,11.85850459,183.6,183.48,3.02]
[1755487832149,3.09,183.51,183.48,3.02]
[1755487832345,3.09,183.57,183.5,3.02]
[1755487832542,3.09,183.56,183.5,3.02]
[1755487832854,3.09,183.58,183.51,3.02]
[1755487833352,3.09,183.62,183.55,3.02]
[1755487833651,3.09,183.65,183.56,3.02]
[1755487834355,3.09,183.63,183.57,3.02]
[1755487834650,366.86802223,183.68,183.58,5.8338535]
[1755487834852,4.08407611,183.67,183.59,3.02]
[1755487835049,3.09,183.69,183.61,3.02]
[1755487835248,4.08581814,183.68,183.61,3.02]
[1755487835444,5.4428,183.62,183.53,3.02]
[1755487835645,6.97249257,183.69,183.53,3.02]
[1755487835845,3.09,183.63,183.53,3.02]
[1755487836046,4.08582093,183.62,183.47,365.9]
[1755487836348,4.08582093,183.61,183.46,0.6358562]
[1755487836542,3.09,183.54,183.46,0.6358562]
[1755487836745,3.09,183.61,183.53,3.02]
[1755487836943,0.94784148,183.69,183.53,9.48483153]
[1755487837147,7.17843838,183.68,183.54,3.02]
[1755487837350,3.09,183.66,183.54,3.02]
[1755487837551,4.08843838,183.65,183.54,3.02]
[1755487837849,3.09,183.69,183.63,3.02]
[1755487838048,7.18187069,183.68,183.63,3.02]
[1755487838242,4.09187069,183.67,183.63,8.4623]
[1755487838449,3.09,183.65,183.54,3.02]
[1755487838650,3.09,183.63,183.54,3.02]
[1755487838856,7.18562898,183.62,183.54,3.02]
[1755487839053,4.09562898,183.61,183.54,3.02]
[1755487839357,4.09562898,183.6,183.54,3.02]
[1755487839658,3.09,183.58,183.51,3.02]
[1755487839862,4.09562898,183.57,183.51,3.02]
[1755487840156,4.09562898,183.56,183.51,3.02]
[1755487840355,3.09,183.62,183.53,3.02]
[1755487840654,3.09,183.6,183.53,3.02]
[1755487840855,3.09,183.58,183.53,3.02]
[1755487841055,3.09,183.56,183.54,3.02]
[1755487841257,4.09963784,183.55,183.54,3.02]
[1755487841553,3.09,183.58,183.56,3.02]
[1755487841758,4.10134309,183.57,183.56,3.02]
[1755487842054,4.10134431,183.57,183.5,5.446]
[1755487842260,7.19134431,183.56,183.54,3.02]
[1755487842551,8.93156646,183.65,183.46,0.6358562]
[1755487842552,4.10411495,183.55,183.46,0.6358562]
[1755487842757,4.10411495,183.54,183.47,3.02]
[1755487842955,4.10411495,183.53,183.47,3.02]
[1755487843152,4.10662072,183.52,183.47,3.02]
[1755487843352,4.10639898,183.51,183.47,3.02]
[1755487843555,4.10639898,183.51,183.46,0.6358562]
[1755487843556,3.09,183.56,183.46,0.6358562]
[1755487843754,3.09,183.48,183.46,0.6358562]
[1755487843962,3.09,183.5,183.46,3.6558562]
[1755487844257,3.09,183.48,183.46,3.6558562]
[1755487844452,4.10588647,183.47,183.46,3.6558562]
[1755487844858,4.10588647,183.47,183.46,0.6358562]
[1755487845058,4.10588647,183.47,183.46,3.6558562]
[1755487845454,3.09,183.49,183.46,0.6358562]
[1755487845654,4.10815653,183.48,183.47,3.02]
[1755487845863,3.09,183.51,183.49,3.02]
[1755487846062,4.10889702,183.5,183.49,3.02]
[1755487847058,3.09,183.55,183.49,3.02]
[1755487847260,4.11267245,183.54,183.49,3.02]
[1755487847454,3.09,183.58,183.54,3.02]
[1755487847654,4.11430646,183.57,183.56,3.02]
[1755487847855,0.94833224,183.63,183.56,3.02]
[1755487848050,4.11472524,183.62,183.6,3.02]
[1755487848263,4.11472524,183.62,183.52,3.02]
[1755487848264,4.11472524,183.61,183.52,3.02]
[1755487848561,4.11472524,183.6,183.52,3.02]
[1755487848762,3.09,183.64,183.52,3.02]
[1755487848960,4.11538886,183.63,183.52,3.02]
[1755487849168,4.11538886,183.62,183.52,3.02]
[1755487849355,4.11538886,183.61,183.52,3.02]
[1755487849549,4.11538886,183.6,183.52,3.02]
[1755487849756,3.09,183.62,183.52,3.02]
[1755487849964,3.09,183.6,183.52,3.02]
[1755487850152,4.11634077,183.59,183.52,3.02]
[1755487850353,4.11634077,183.58,183.52,3.02]
[1755487850556,3.09,183.6,183.52,3.02]
[1755487850756,4.11729296,183.59,183.52,3.02]
[1755487850965,3.09,183.65,183.48,3.02]
[1755487851263,3.09,183.65,183.47,9.48483153]
[1755487851264,4.11759683,183.64,183.52,3.02]
[1755487851467,3.09,183.62,183.59,3.02]
[1755487851655,4.11759683,183.61,183.52,3.02]
[1755487851859,4.11833204,183.6,183.52,3.02]
[1755487852068,3.09,183.65,183.52,3.02]
[1755487852256,4.1189979,183.64,183.52,3.02]
[1755487852454,7.2189979,183.63,183.52,3.02]
[1755487852658,7.2189979,183.62,183.59,2.94]
[1755487852855,3.1,183.62,183.51,2.94]
[1755487853061,3.1,183.62,183.6,5.4432]
[1755487853271,3.1,183.62,183.6,2.94]
[1755487853972,3.1,183.67,183.6,2.94]
[1755487854168,4.12079048,183.66,183.62,5.4424]
[1755487854374,7.22079048,183.65,183.54,9.48483153]
[1755487854676,3.1,183.65,183.63,2.94]
[1755487855369,3.1,183.7,183.63,8.3823]
[1755487855570,3.1,183.68,183.63,2.94]
[1755487855873,3.1,183.66,183.62,8.3826]
[1755487856167,7.22094321,183.65,183.62,8.3826]
[1755487856469,6.02465109,183.71,183.6,2.94]
[1755487856673,9.12465109,183.69,183.57,2.94]
[1755487856866,5.4424,183.63,183.57,8.3839]
[1755487857066,4.12047223,183.62,183.57,5.4439]
[1755487857367,0.94777695,183.72,183.59,2.94]
[1755487857368,3.1,183.66,183.59,2.94]
[1755487857571,3.1,183.66,183.61,2.94]
[1755487857572,3.1,183.64,183.61,2.94]
[1755487857769,6.02465109,183.7,183.48,147.76]
[1755487857964,3.1,183.68,183.51,2.94]
[1755487858165,3.1,183.66,183.51,2.94]
[1755487858361,7.22094883,183.65,183.51,2.94]
[1755487858567,9.56304883,183.64,183.58,5.4436]
[1755487858762,5.4421,183.64,183.6,2.94]
[1755487858973,3.1,183.63,183.6,2.94]
[1755487859182,3.1,183.62,183.6,2.94]
[1755487859381,6.02465109,183.71,183.5,9.48483153]
[1755487859584,3.1,183.69,183.51,2.94]
[1755487859784,3.1,183.62,183.52,2.94]
[1755487859985,3.1,183.69,183.52,2.94]
[1755487860174,3.1,183.67,183.52,2.94]
[1755487860376,3.1,183.65,183.51,2.94]
[1755487860572,4.12238193,183.64,183.51,2.94]
[1755487860772,3.1,183.63,183.51,2.94]
[1755487860979,3.1,183.7,183.55,2.94]
[1755487861183,0.94777695,183.72,183.55,2.94]
[1755487861184,3.1,183.68,183.55,2.94]
[1755487861488,8.5411,183.68,183.55,2.94]
[1755487861680,3.1,183.68,183.55,2.94]
[1755487862276,3.1,183.68,183.48,147.76]
[1755487862277,3.1,183.71,183.59,2.94]
[1755487862680,3.1,183.79,183.63,2.94]
[1755487862883,148.34,183.8,183.63,2.94]
[1755487862884,3.1,183.77,183.66,9.48483153]
[1755487863080,3.1,183.77,183.67,2.94]
[1755487863480,5.4391,183.75,183.69,5.4404]
[1755487863789,3.1,183.79,183.69,2.94]
[1755487864088,3.1,183.76,183.69,2.94]
[1755487864481,3.1,183.76,183.7,5.4403]
[1755487864685,3.1,183.76,183.63,2.94]
[1755487864879,3.1,183.74,183.63,2.94]
[1755487865089,5.4392,183.74,183.67,5.4411]
[1755487865389,3.1,183.73,183.67,5.4411]
[1755487865590,3.1,183.73,183.6,2.94]
[1755487865894,3.1,183.76,183.7,5.4402]
[1755487866585,3.1,183.79,183.64,2.94]
[1755487866978,3.1,183.8,183.74,2.94]
[1755487868178,3.1,183.8,183.74,8.3791]
[1755487868488,3.1,183.8,183.74,2.94]
[1755487868683,372.24409965,183.83,183.76,5.4385]
[1755487868888,372.24409965,183.83,183.67,9.48483153]
[1755487868889,4.11494401,183.82,183.67,9.48483153]
[1755487869093,3.1,183.85,183.76,2.94]
[1755487869393,3.1,183.85,183.83,2.94]
[1755487869683,3.1,183.85,183.81,2.94]
[1755487869893,3.1,183.88,183.76,2.94]
[1755487870389,3.1,183.91,183.8,2.94]
[1755487871284,3.1,183.91,183.85,5.4356]
[1755487871592,3.1,183.91,183.8,2.94]
[1755487872079,4.10773948,183.9,183.8,2.94]
[1755487872279,3.1,183.88,183.8,2.94]
[1755487872684,3.1,183.88,183.81,5.4369]
[1755487872887,3.1,183.88,183.72,365.74]
[1755487872888,3.1,183.86,183.78,2.94]
[1755487873188,3.1,183.86,183.8,5.4373]
[1755487873388,3.1,183.94,183.8,2.94]
[1755487873577,3.1,183.92,183.8,2.94]
[1755487873781,4.10081341,183.91,183.8,2.94]
[1755487873990,3.1,183.9,183.8,2.94]
[1755487874178,3.1,183.88,183.8,2.94]
[1755487874379,3.1,183.86,183.75,2.94]
[1755487874584,4.09748602,183.85,183.75,2.94]
[1755487874784,3.1,183.84,183.75,2.94]
[1755487875092,3.1,183.84,183.78,8.3777]
[1755487875493,3.1,183.84,183.73,2.94]
[1755487875793,3.1,183.82,183.73,2.94]
[1755487875979,3.1,183.82,183.74,5.4391]
[1755487876186,3.1,183.8,183.73,2.94]
[1755487876588,3.1,183.8,183.73,8.3794]
[1755487877287,3.1,183.8,183.73,2.94]
[1755487877991,3.1,183.8,183.67,2.94]
[1755487878587,3.1,183.8,183.71,2.94]
[1755487879797,3.1,183.76,183.69,2.94]
[1755487880092,3.1,183.84,183.69,2.94]
[1755487880295,3.1,183.82,183.69,2.94]
[1755487880495,3.1,183.8,183.69,2.94]
[1755487882793,4.09269907,183.79,183.69,2.94]
[1755487883000,5.4385,183.77,183.7,5.4401]
[1755487883188,3.1,183.76,183.7,5.4401]
[1755487884201,3.1,183.76,183.69,2.94]
[1755487884691,4.09253997,183.75,183.63,2.96]
[1755487884897,3.1,183.73,183.63,2.96]
[1755487885095,4.09280085,183.72,183.67,5.4413]
[1755487885399,3.1,183.7,183.66,2.96]
[1755487885596,3.1,183.72,183.69,5.4404]
[1755487885796,5.97795121,183.8,183.63,2.96]
[1755487885997,3.1,183.73,183.63,2.96]
[1755487888603,3.1,183.76,183.72,5.4398]
[1755487888897,7.20255387,183.75,183.72,8.3998]
[1755487889201,3.1,183.75,183.73,5.4394]
[1755487889600,5.97795121,183.82,183.65,148.9]
[1755487889902,3.1,183.78,183.66,2.96]
[1755487890107,4.1066148,183.77,183.66,2.96]
[1755487890400,3.1,183.78,183.66,2.96]
[1755487890599,3.1,183.76,183.66,2.96]
[1755487890799,3.1,183.74,183.66,2.96]
[1755487890997,3.1,183.72,183.68,5.4407]
[1755487891202,4.11132531,183.71,183.68,5.4407]
[1755487891393,3.1,183.74,183.63,2.96]
[1755487891598,18.41639799,183.81,183.69,2.96]
[1755487891599,7.21221838,183.73,183.69,2.96]
[1755487891800,5.97795121,183.79,183.62,365.56]
[1755487891993,9.07795121,183.77,183.63,2.96]
[1755487892308,3.1,183.72,183.68,8.4007]
[1755487892498,3.1,183.7,183.66,2.96]
[1755487892699,8.93156646,183.79,183.58,9.48483153]
[1755487892700,3.1,183.75,183.63,2.96]
[1755487893004,3.1,183.67,183.63,2.96]
[1755487893202,3.1,183.67,183.64,2.96]
[1755487893401,3.1,183.67,183.64,8.4019]
[1755487893802,5.97795121,183.73,183.58,2.96]
[1755487894002,3.1,183.65,183.58,2.96]
[1755487894206,3.1,183.72,183.58,2.96]
[1755487894408,3.1,183.7,183.58,2.96]
[1755487894602,4.08307331,183.69,183.58,2.96]
[1755487894805,3.1,183.7,183.58,2.96]
[1755487895209,4.08321711,183.69,183.58,2.96]
[1755487895400,3.1,183.7,183.58,2.96]
[1755487895598,4.08355908,183.69,183.58,2.96]
[1755487895803,3.1,183.7,183.58,2.96]
[1755487895998,4.08361098,183.69,183.58,12.44483153]
[1755487896210,3.1,183.72,183.59,2.96]
[1755487896709,3.1,183.72,183.7,5.4403]
[1755487896897,3.1,183.72,183.58,9.48483153]
[1755487897102,3.1,183.72,183.7,2.96]
[1755487897399,3.1,183.72,183.71,5.4401]
[1755487897603,7.18589937,183.72,183.7,2.96]
[1755487897808,3.1,183.72,183.7,2.96]
[1755487898008,5.97795121,183.79,183.58,9.48483153]
[1755487898205,3.1,183.71,183.59,2.96]
[1755487898610,3.1,183.69,183.59,2.96]
[1755487898907,3.1,183.67,183.59,2.96]
[1755487899212,3.1,183.71,183.64,2.96]
[1755487899508,25.79483153,183.8,183.63,5.4422]
[1755487899509,4.08787903,183.7,183.63,5.4422]
[1755487899707,3.1,183.63,183.56,2.96]
[1755487899907,4.08787903,183.62,183.56,2.96]
[1755487900102,5.97795121,183.68,183.57,5.4442]
[1755487900307,5.4424,183.64,183.57,2.96]
[1755487900615,3.1,183.6,183.53,2.96]
[1755487901212,3.1,183.63,183.53,2.96]
[1755487901417,4.08563959,183.62,183.53,2.96]
[1755487901711,3.1,183.61,183.53,2.96]
[1755487901908,3.1,183.63,183.53,2.96]
[1755487902111,4.0877671,183.62,183.53,2.96]
[1755487902308,5.4412,183.68,183.61,5.4428]
[1755487902506,7.18866332,183.67,183.61,2.96]
[1755487902706,3.1,183.65,183.62,2.96]
[1755487902902,4.08866332,183.64,183.62,2.96]
[1755487903208,3.1,183.64,183.62,2.96]
[1755487903510,3.1,183.64,183.62,8.4026]
[1755487903808,3.1,183.68,183.62,2.96]
[1755487904010,7.19134142,183.67,183.64,2.96]
[1755487904212,3.1,183.69,183.65,2.96]
[1755487904508,3.1,183.67,183.64,5.4419]
[1755487904713,3.1,183.72,183.57,148.76]
[1755487904906,3.1,183.7,183.61,2.96]
[1755487905212,3.1,183.68,183.62,5.4426]
[1755487905415,4.09336732,183.67,183.62,8.4026]
[1755487905609,3.1,183.65,183.62,5.4426]
[1755487905804,3.1,183.65,183.63,2.96]
[1755487906113,5.4411,183.68,183.63,2.96]
[1755487906302,3.1,183.66,183.63,2.96]
[1755487906817,3.1,183.66,183.63,8.4024]
[1755487907913,3.1,183.66,183.61,8.4028]
[1755487908114,366.58767371,183.73,183.61,8.4028]
[1755487908115,3.1,183.65,183.62,2.96]
[1755487909018,3.1,183.62,183.53,2.96]
[1755487909618,3.1,183.7,183.53,2.96]
[1755487909817,3.1,183.68,183.53,2.96]
[1755487910121,3.1,183.66,183.59,8.4034]
[1755487910717,5.4422,183.64,183.59,5.4434]
[1755487910920,3.1,183.63,183.6,8.4032]
[1755487911621,366.58767371,183.73,183.64,2.96]
[1755487911816,3.1,183.71,183.64,2.96]
[1755487912013,4.0903993,183.7,183.54,3.0]
[1755487912223,3.03,183.7,183.54,3.0]
[1755487912416,3.03,183.7,183.58,3.0]
[1755487912623,8.4704,183.7,183.58,3.0]
[1755487912923,3.03,183.72,183.58,3.0]
[1755487913118,5.44,183.72,183.67,8.441]
[1755487913315,3.03,183.7,183.67,3.0]
[1755487913714,3.03,183.72,183.6,3.0]
[1755487914119,5.4398,183.72,183.68,5.4407]
[1755487914421,3.03,183.69,183.67,3.0]
[1755487914623,8.4697,183.72,183.67,5.441]
[1755487914820,5.4397,183.72,183.67,8.441]
[1755487915026,3.03,183.75,183.6,3.0]
[1755487915222,5.4407,183.69,183.64,5.4419]
[1755487915522,3.03,183.67,183.64,8.4419]
[1755487915824,3.03,183.67,183.65,5.4417]
[1755487916028,3.03,183.69,183.66,3.0]
[1755487916323,3.03,183.75,183.66,8.4413]
[1755487916514,5.4406,183.7,183.66,8.4413]
[1755487916713,3.03,183.68,183.66,8.4413]
[1755487916919,3.03,183.67,183.64,3.0]
[1755487917114,18.49278274,183.75,183.54,10.8901]
[1755487917325,3.03,183.73,183.58,3.0]
[1755487917519,3.03,183.71,183.58,3.0]
[1755487917716,4.09723022,183.7,183.62,5.4425]
[1755487917914,3.03,183.63,183.6,3.0]
[1755487918113,3.03,183.63,183.61,3.0]
[1755487918522,5.97795121,183.71,183.49,10.43281502]
[1755487918728,10.07891974,183.7,183.53,3.0]
[1755487918926,3.03,183.68,183.53,3.0]
[1755487919127,4.10096853,183.67,183.53,3.0]
[1755487919327,4.10096853,183.66,183.54,3.0]
[1755487919524,3.03,183.67,183.54,3.0]
[1755487919926,5.97795121,183.74,183.53,20.37543153]
[1755487920231,3.03,183.72,183.58,3.0]
[1755487920524,3.03,183.75,183.7,3.0]
[1755487920729,7.13514619,183.74,183.71,3.0]
[1755487921029,7.13514619,183.73,183.62,3.0]
[1755487921231,4.10514619,183.72,183.62,3.0]
[1755487921431,3.03,183.73,183.62,3.0]
[1755487921632,7.13694256,183.72,183.69,3.0]
[1755487921832,3.03,183.72,183.69,3.0]
[1755487922029,3.03,183.77,183.69,3.0]
[1755487922231,3.03,183.72,183.61,156.58483153]
[1755487922433,3.03,183.72,183.62,3.0]
[1755487922630,3.03,183.72,183.69,5.4406]
[1755487922827,7.13918256,183.71,183.61,156.58483153]
[1755487923027,3.03,183.7,183.61,156.58483153]
[1755487923228,3.03,183.7,183.68,3.0]
[1755487923429,3.03,183.7,183.68,8.4409]
[1755487924236,3.03,183.7,183.68,3.0]
[1755487924639,4.10649616,183.69,183.65,3.0]
[1755487924825,7.13648927,183.68,183.65,3.0]
[1755487925031,3.03,183.68,183.65,3.0]
[1755487925232,3.03,183.68,183.65,5.4416]
[1755487925428,4.10702763,183.67,183.66,3.0]
[1755487926731,4.10702763,183.67,183.64,5.4419]
[1755487926732,7.13702763,183.67,183.64,5.4419]
[1755487926945,3.03,183.67,183.65,3.0]
[1755487927126,5.97795121,183.73,183.65,3.0]
[1755487927326,4.10984217,183.72,183.65,3.0]
[1755487927533,4.10984217,183.71,183.65,3.0]
[1755487927734,7.13984217,183.7,183.66,3.0]
[1755487927935,7.13984217,183.69,183.6,3.0]
[1755487928140,4.10984217,183.68,183.63,5.4422]
[1755487928438,4.11072912,183.67,183.63,5.4422]
[1755487928638,4.11072912,183.66,183.65,3.0]
[1755487929835,8.4718,183.65,183.63,3.0]
[1755487930142,4.11072912,183.64,183.63,3.0]
[1755487930343,8.4718,183.65,183.63,3.0]
[1755487930635,9.00795121,183.73,183.63,3.0]
[1755487930834,7.1434964,183.72,183.66,3.0]
[1755487931138,3.03,183.7,183.67,3.0]
[1755487931337,7.1434964,183.69,183.67,3.0]
[1755487931533,4.1134964,183.68,183.67,3.0]
[1755487931735,7.1434964,183.68,183.64,5.442]
[1755487931936,4.1134964,183.67,183.65,3.0]
[1755487932136,3.03,183.68,183.65,3.0]
[1755487932443,3.03,183.66,183.63,3.0]
[1755487932643,3.03,183.66,183.56,145.96]
[1755487932644,3.03,183.66,183.64,3.0]
[1755487932835,8.93156646,183.75,183.62,3.0]
[1755487932836,3.03,183.64,183.62,3.0]
[1755487933038,3.03,183.62,183.6,3.0]
[1755487933238,3.03,183.61,183.6,3.0]
[1755487933438,5.4427,183.62,183.6,3.0]
[1755487934041,5.4425,183.63,183.6,3.0]
[1755487934241,3.03,183.67,183.6,3.0]
[1755487934437,4.11395871,183.66,183.6,3.0]
[1755487934738,4.11395871,183.65,183.58,3.0]
[1755487934943,9.48483153,183.71,183.58,3.0]
[1755487934944,3.03,183.61,183.58,3.0]
[1755487935241,7.14395871,183.6,183.58,3.0]
[1755487935539,4.11395871,183.59,183.58,3.0]
[1755487935939,3.03,183.62,183.59,3.0]
[1755487936141,4.11517027,183.61,183.53,3.0]
[1755487936441,5.4426,183.63,183.53,3.0]
[1755487936642,4.11514567,183.62,183.56,3.0]
[1755487936835,5.4428,183.62,183.56,3.0]
[1755487938037,5.97795121,183.7,183.56,3.0]
[1755487938237,3.03,183.67,183.56,3.0]
[1755487938438,5.442,183.65,183.6,5.4431]
[1755487938638,5.97795121,183.71,183.62,3.0]
[1755487938639,7.14396459,183.64,183.62,3.0]
[1755487938840,3.03,183.64,183.62,3.0]
[1755487939241,3.03,183.66,183.54,145.32]
[1755487939440,4.11382444,183.65,183.64,3.0]
[1755487939735,3.03,183.64,183.57,3.0]
[1755487939935,4.11382444,183.63,183.57,3.0]
[1755487940141,3.03,183.6,183.58,3.0]
[1755487941136,8.4734,183.6,183.58,3.0]
[1755487941342,3.03,183.6,183.58,3.0]
[1755487941540,5.4436,183.59,183.58,3.0]
[1755487941842,3.03,183.57,183.54,3.0]
[1755487942046,2.86,183.64,183.54,3.0]
[1755487942239,5.97795121,183.65,183.54,3.0]
[1755487942240,2.86,183.62,183.54,3.0]
[1755487942436,2.86,183.6,183.54,3.0]
[1755487942635,18.41639799,183.67,183.52,2.94]
[1755487942636,2.86,183.58,183.52,2.94]
[1755487942834,5.97795121,183.64,183.42,365.78]
[1755487942835,2.86,183.56,183.47,2.94]
[1755487943041,2.86,183.54,183.47,2.94]
[1755487943239,2.86,183.56,183.47,2.94]
[1755487943435,2.86,183.58,183.52,5.4456]
[1755487943640,4.11171768,183.57,183.47,2.94]